fUSD/lending_fUSD_20240812
["ID","MTS","AMOUNT","RATE_DAILY","PERIOD"]
[334702543,1723486250775,-768.901009,0.0001222,2]
[334702544,1723486250786,-169.804325,0.0001222,2]
[334702545,1723486250796,-768.901009,0.0001222,2]
[334702546,1723486250805,-500.0,0.00012221,2]
[334702547,1723486250815,-150.0,0.00012225,2]
[334702548,1723486250825,-150.0,0.00012227,2]
[334702549,1723486250835,-150.0,0.00012229,2]
[334702550,1723486250844,-500.0,0.0001223,2]
[334702551,1723486250854,-480.145753,0.00012238,2]
[334702552,1723486250864,-480.145753,0.00012238,2]
[334702553,1723486250874,-198.068424,0.00012238,2]
[334702554,1723486250884,-198.068424,0.00012238,2]
[334702555,1723486250894,-508.904054,0.00012238,2]
[334702556,1723486250904,-508.904054,0.00012238,2]
[334702557,1723486250914,-151.0,0.00012238,2]
[334702558,1723486250924,-217.496644,0.00012238,2]
[334702559,1723486250934,-217.496644,0.00012238,2]
[334702560,1723486250943,-820.92503,0.00012238,2]
[334702561,1723486250955,-820.92503,0.00012238,2]
[334702562,1723486250965,-500.0,0.00012238,2]
[334702563,1723486250974,-151.0,0.00012247,2]
[334702564,1723486250984,-151.0,0.00012247,2]
[334702565,1723486250993,-151.0,0.00012247,2]
[334702566,1723486251003,-364.401744,0.00012247,2]
[334702567,1723486251012,-364.401744,0.00012247,2]
[334702568,1723486251021,-1854.572862,0.00012247,2]
[334702569,1723486251031,-1854.572862,0.00012247,2]
[334702570,1723486251040,-151.0,0.00012247,2]
[334702571,1723486251050,-202.880891,0.00012247,2]
[334702572,1723486251059,-202.880891,0.00012247,2]
[334702573,1723486251068,-150.0,0.00012247,2]
[334702574,1723486251078,-500.0,0.00012247,2]
[334702575,1723486251088,-150.0,0.0001225,2]
[334702576,1723486251098,-300.0,0.00012254,2]
[334702577,1723486251107,-150.0,0.00012256,2]
[334702578,1723486251117,-500.0,0.00012256,2]
[334702579,1723486251126,-150.0,0.00012262,2]
[334702580,1723486251136,-500.0,0.00012265,2]
[334702581,1723486251145,-259.879889,0.00012266,2]
[334702582,1723486251155,-259.879889,0.00012266,2]
[334702583,1723486251165,-151.0,0.00012266,2]
[334702584,1723486251174,-150.0,0.0001227,2]
[334702585,1723486251184,-500.0,0.00012274,2]
[334702586,1723486251193,-150.0,0.00012276,2]
[334702587,1723486251204,-202.159411,0.00012279,2]
[334702588,1723486251214,-202.159411,0.00012279,2]
[334702589,1723486251224,-500.0,0.00012281,2]
[334702590,1723486251234,-500.0,0.00012282,2]
[334702591,1723486251243,-500.0,0.0001229,2]
[334702592,1723486251253,-500.0,0.00012291,2]
[334702593,1723486251262,-150.0,0.00012293,2]
[334702594,1723486251271,-150.0,0.00012293,2]
[334702595,1723486251281,-500.0,0.00012299,2]
[334702596,1723486251290,-1200.781944,0.000123,2]
[334702597,1723486251300,-500.0,0.000123,2]
[334702598,1723486251309,-150.0,0.00012305,2]
[334702599,1723486251323,-500.0,0.00012308,2]
[334702600,1723486251333,-150.0,0.00012314,2]
[334702601,1723486251342,-150.0,0.00012316,2]
[334702602,1723486251352,-500.0,0.00012316,2]
[334702603,1723486251361,-150.0,0.00012318,2]
[334702604,1723486251371,-150.0,0.00012319,2]
[334702605,1723486251380,-150.0,0.00012321,2]
[334702606,1723486251390,-4006.2459189,0.00012321,2]
[334702607,1723486251400,-500.0,0.00012325,2]
[334702608,1723486251409,-150.0,0.00012328,2]
[334702609,1723486251418,-150.0,0.00012331,2]
[334702610,1723486251427,-151.0,0.00012334,2]
[334702611,1723486251437,-151.0,0.00012334,2]
[334702612,1723486251446,-151.0,0.00012334,2]
[334702613,1723486251459,-151.0,0.00012334,2]
[334702614,1723486251468,-151.0,0.00012334,2]
[334702615,1723486251477,-500.0,0.00012334,2]
[334702616,1723486251487,-500.0,0.00012343,2]
[334702617,1723486251496,-150.0,0.00012343,2]
[334702618,1723486251506,-150.0,0.00012344,2]
[334702619,1723486251515,-150.0,0.00012351,2]
[334702620,1723486251525,-500.0,0.00012352,2]
[334702621,1723486251535,-150.0,0.00012354,2]
[334702622,1723486251544,-150.0,0.00012355,2]
[334702623,1723486251553,-150.0,0.00012356,2]
[334702624,1723486251563,-150.0,0.00012357,2]
[334702625,1723486251573,-150.0,0.00012359,2]
[334702626,1723486251582,-723.413963,0.0001236,2]
[334702627,1723486251593,-723.413963,0.0001236,2]
[334702628,1723486251603,-298.64662098,0.0001236,2]
[334702629,1723486251612,-150.0,0.00012363,2]
[334702630,1723486251623,-150.0,0.00012379,2]
[334702631,1723486251633,-150.0,0.00012386,2]
[334702632,1723486251648,-150.0,0.00012391,2]
[334702633,1723486251658,-150.0,0.00012392,2]
[334702634,1723486251668,-150.0,0.00012395,2]
[334702635,1723486251678,-522.26105292,0.00012397,2]
[334702636,1723486251687,-150.0,0.00012398,2]
[334702637,1723486251697,-151.0,0.00012399,2]
[334702638,1723486251710,-151.0,0.00012399,2]
[334702639,1723486251721,-151.0,0.00012399,2]
[334702640,1723486251731,-410.303923,0.00012399,2]
[334702641,1723486251741,-410.303923,0.00012399,2]
[334702642,1723486251751,-182.646113,0.00012399,2]
[334702643,1723486251761,-182.646113,0.00012399,2]
[334702644,1723486251771,-12111.9705414,0.00012399,2]
[334702645,1723486251781,-551.0,0.000124,2]
[334702646,1723486251791,-204.138513,0.000124,2]
[334702647,1723486251801,-151.0,0.000124,2]
[334702648,1723486251812,-151.0,0.000124,2]
[334702649,1723486251822,-151.0,0.000124,2]
[334702650,1723486251831,-151.0,0.000124,2]
[334702651,1723486251841,-151.0,0.000124,2]
[334702652,1723486251851,-186.961222,0.000124,2]
[334702653,1723486251861,-186.961222,0.000124,2]
[334702654,1723486251871,-600.620056,0.000124,2]
[334702655,1723486251881,-600.620056,0.000124,2]
[334702656,1723486251891,-151.0,0.000124,2]
[334702657,1723486251901,-169.953802,0.000124,2]
[334702658,1723486251911,-169.953802,0.000124,2]
[334702659,1723486251920,-150.0,0.000124,2]
[334702660,1723486251929,-1346.5885,0.000124,2]
[334702661,1723486251939,-151.0,0.000124,2]
[334702662,1723486251948,-231.887031,0.000124,2]
[334702663,1723486251965,-151.0,0.000124,2]
[334702664,1723486251975,-821.318509,0.000124,2]
[334702665,1723486251984,-821.318509,0.000124,2]
[334702666,1723486251994,-151.0,0.000124,2]
[334702667,1723486252003,-151.0,0.000124,2]
[334702668,1723486252012,-163.80587,0.000124,2]
[334702669,1723486252022,-163.80587,0.000124,2]
[334702670,1723486252032,-462.041461,0.000124,2]
[334702671,1723486252042,-462.041461,0.000124,2]
[334702672,1723486252051,-151.0,0.000124,2]
[334702673,1723486252061,-168.405203,0.000124,2]
[334702674,1723486252071,-168.405203,0.000124,2]
[334702675,1723486252081,-548.27339696,0.000124,2]
[334702676,1723486252091,-478.208225,0.000124,2]
[334702677,1723486252101,-478.208225,0.000124,2]
[334702678,1723486252110,-195.571753,0.000124,2]
[334702679,1723486252119,-195.571753,0.000124,2]
[334702680,1723486252128,-151.0,0.000124,2]
[334702681,1723486252139,-150.0,0.00012408,2]
[334702682,1723486252149,-150.0,0.00012414,2]
[334702683,1723486252159,-150.0,0.00012415,2]
[334702684,1723486252169,-150.0,0.00012417,2]
[334702685,1723486252179,-150.0,0.00012418,2]
[334702686,1723486252189,-150.0,0.00012431,2]
[334702687,1723486252198,-151.0,0.00012432,2]
[334702688,1723486252211,-151.0,0.00012432,2]
[334702689,1723486252220,-151.0,0.00012432,2]
[334702690,1723486252230,-364.401744,0.00012432,2]
[334702691,1723486252239,-364.401744,0.00012432,2]
[334702692,1723486252249,-1854.572862,0.00012432,2]
[334702693,1723486252258,-1854.572862,0.00012432,2]
[334702694,1723486252268,-151.0,0.00012432,2]
[334702695,1723486252278,-151.0,0.00012432,2]
[334702696,1723486252287,-202.880891,0.00012432,2]
[334702697,1723486252297,-202.880891,0.00012432,2]
[334702698,1723486252307,-417.146598,0.00012432,2]
[334702699,1723486252316,-417.146598,0.00012432,2]
[334702700,1723486252327,-151.0,0.00012432,2]
[334702701,1723486252337,-546.97266,0.00012432,2]
[334702702,1723486252347,-546.97266,0.00012432,2]
[334702703,1723486252356,-151.0,0.00012432,2]
[334702704,1723486252366,-199.1257939,0.00012432,2]
[334702705,1723486252376,-480.145753,0.00012432,2]
[334702706,1723486252385,-480.145753,0.00012432,2]
[334702707,1723486252395,-198.068424,0.00012432,2]
[334702708,1723486252405,-198.068424,0.00012432,2]
[334702709,1723486252414,-412.9102711,0.00012432,2]
[334702710,1723486252423,-508.904054,0.00012432,2]
[334702711,1723486252432,-508.904054,0.00012432,2]
[334702712,1723486252442,-151.0,0.00012432,2]
[334702713,1723486252456,-217.496644,0.00012432,2]
[334702714,1723486252465,-217.496644,0.00012432,2]
[334702715,1723486252475,-4118.8532721,0.00012432,2]
[334702716,1723486252484,-820.92503,0.00012432,2]
[334702717,1723486252493,-820.92503,0.00012432,2]
[334702718,1723486252503,-159.102217,0.00012432,2]
[334702719,1723486252513,-159.102217,0.00012432,2]
[334702720,1723486252523,-169.804325,0.00012432,2]
[334702721,1723486252533,-768.901009,0.00012432,2]
[334702722,1723486252542,-169.804325,0.00012432,2]
[334702723,1723486252552,-768.901009,0.00012432,2]
[334702724,1723486252562,-3674.3409108,0.00012432,2]
[334702725,1723486252571,-1343.2701661,0.00012432,2]
[334702726,1723486252581,-2632.9463982,0.00012432,2]
[334702727,1723486252591,-151.0,0.00012435,2]
[334702728,1723486252601,-171.07459,0.00012435,2]
[334702729,1723486252611,-202.159411,0.00012436,2]
[334702730,1723486252620,-202.159411,0.00012436,2]
[334702731,1723486252630,-259.879889,0.00012436,2]
[334702732,1723486252640,-259.879889,0.00012436,2]
[334702733,1723486252652,-151.0,0.00012436,2]
[334702734,1723486252662,-228.46662258,0.00012438,2]
[334702735,1723486252671,-173.14,0.0001244,2]
[334702736,1723486252682,-367.87511774,0.0001246,2]
[334702737,1723486252692,-155.1718428,0.0001246,2]
[334702738,1723486252704,-7360.93924432,0.00012497,2]
[334702739,1723486252714,-115720.76629612,0.000125,5]
[334702740,1723486252739,-376.8899995,0.00012,2]
[334702741,1723486252750,-142.8500005,0.00012,2]
[334702742,1723486252760,-2467.1499995,0.000125,5]
[334702743,1723486252771,-1067.81353758,0.000125,5]
[334702744,1723486252782,-455.24917089,0.000125,5]
[334702745,1723486252793,-367.28103545,0.000125,5]
[334702746,1723486252813,-12676.8515076,0.000125,5]
[334702747,1723486253056,-389.71569304,0.00012,2]
[334702748,1723486253067,-130.02430696,0.00012,2]
[334702749,1723486253078,-417.58611131,0.00012,2]
[334702750,1723486253090,-102.15388869,0.00012,2]
[334702751,1723486253099,-519.74,0.00012,2]
[334702752,1723486253108,-519.74,0.00012,2]
[334702753,1723486253117,-442.30306276,0.00012,2]
[334702754,1723486253134,-77.43693724,0.00012,2]
[334702755,1723486253308,-186.93311803,0.00012,2]
[334702756,1723486253347,-332.80688197,0.00012,2]
[334702757,1723486253357,-339.24592736,0.00012,2]
[334702758,1723486253369,-180.49407264,0.00012,2]
[334702759,1723486253378,-519.74,0.00012,2]
[334702760,1723486253387,-431.66780645,0.00012,2]
[334702761,1723486253404,-88.07219355,0.00012,2]
[334702762,1723486253413,-519.74,0.00012,2]
[334702763,1723486253423,-522.26105292,0.00012391,2]
[334702764,1723486253433,-1006.12377786,0.000125,5]
[334702765,1723486253445,-335467.42633942,0.000125,5]
[334702766,1723486253461,-555.0,0.000125,5]
[334702767,1723486253480,-1891.29763656,0.000125,5]
[334702768,1723486253493,-360.08234564,0.000125,5]
[334702769,1723486253504,-581.02513369,0.000125,5]
[334702770,1723486253520,-300.025825,0.000125,5]
[334702771,1723486253535,-914.18041574,0.000125,5]
[334702772,1723486253546,-904.64662748,0.000125,5]
[334702773,1723486253558,-1189.02918722,0.000125,5]
[334702774,1723486254099,169.92,9.39e-05,2]
[334702775,1723486304112,257.1176443,9.39e-05,10]
[334702787,1723486723714,161.42,8.536e-05,2]
[334702800,1723487235714,153.34,8.382e-05,2]
[334702803,1723487257206,155.0,8.536e-05,10]
[334702810,1723487376316,155.0,8.536e-05,10]
[334702812,1723487406208,155.0,8.536e-05,10]
[334702818,1723487431961,-411.007609,9.95e-05,2]
[334702819,1723487431970,-27.97221447,0.0001,2]
[334702820,1723487431982,-522.02778553,0.0001,2]
[334702821,1723487431992,-1000.0,0.00010023,2]
[334702822,1723487432005,-173.14,0.00010263,2]
[334702823,1723487432014,-882.82117878,0.00010346,2]
[334702824,1723487432029,-2245.48343347,0.00010346,2]
[334702825,1723487432040,-300.0,0.00010369,2]
[334702826,1723487432049,-300.0,0.00010369,2]
[334702827,1723487432058,-154.92,0.00010381,2]
[334702828,1723487432068,-528.91996067,0.0001047,2]
[334702829,1723487432080,-155.40442993,0.0001047,2]
[334702830,1723487432090,-10534.15307555,0.0001047,2]
[334702831,1723487432102,-2836.06303036,0.0001047,2]
[334702832,1723487432112,-155.09246604,0.0001047,2]
[334702833,1723487432122,-989.61423411,0.0001047,2]
[334702834,1723487432132,-719.99287251,0.0001047,2]
[334702835,1723487432142,-155.0,0.0001047,2]
[334702836,1723487432152,-364.18791554,0.0001047,2]
[334702837,1723487432161,-1544.73938793,0.0001047,2]
[334702838,1723487432171,-155.0,0.0001047,2]
[334702839,1723487432180,-168.39647936,0.0001047,2]
[334702840,1723487432190,-160.83100053,0.0001047,2]
[334702841,1723487432199,-2145.94258433,0.0001047,2]
[334702842,1723487432209,-153.34,0.00010646,2]
[334702843,1723487432218,-560.95490643,0.0001067,2]
[334702844,1723487432228,-560.95490644,0.000108,2]
[334702845,1723487432237,-543.9307,0.000108,2]
[334702846,1723487432246,-600.0,0.000108,3]
[334702847,1723487432255,-889.1987,0.000108,2]
[334702848,1723487432264,-2716.6206,0.00010808,2]
[334702849,1723487432273,-142.7593168,0.00010808,2]
[334702850,1723487432285,-277.4906832,0.00010808,2]
[334702851,1723487432294,-229.12451334,0.0001089,2]
[334702852,1723487432318,-356.88107954,0.0001089,2]
[334702873,1723487438208,-13671.80307338,0.0001089,2]
[334702874,1723487438217,-12016.26889757,0.00010899,2]
[334702875,1723487438228,-8352.21604683,0.000109,2]
[334702876,1723487438525,-3879.60000004,0.000109,2]
[334703049,1723487440192,-1645.63358069,0.000109,2]
[334703067,1723487440356,-2000.0,0.000109,2]
[334703069,1723487440367,-50674.01097754,0.000109,2]
[334703282,1723487443049,-2635.2287962,0.000109,2]
[334703361,1723487443634,-60068.34395859,0.000109,2]
[334703364,1723487443647,-15201.32874011,0.000109,2]
[334703366,1723487443657,-1200.0,0.000109,3]
[334703368,1723487443666,-511.66131445,0.000109,2]
[334703370,1723487443676,-793.66,0.00010959,2]
[334703372,1723487443685,-250.0,0.00010959,2]
[334703374,1723487443694,-817.88213826,0.00010997,2]
[334703376,1723487443703,-164022.3080314,0.00011,2]
[334703379,1723487443726,-500.0,0.00011,2]
[334703381,1723487443737,-1299.26576699,0.00011,2]
[334703384,1723487443749,-3146.60607242,0.00011,2]
[334703386,1723487443759,-283070.70254513,0.00011,2]
[334703388,1723487443772,-237560.38671133,0.00011,2]
[334703391,1723487443788,-687.36978236,0.00011,2]
[334703393,1723487443798,-275.452,0.00011,2]
[334703601,1723487446230,-257.94946662,0.000109,2]
[334703603,1723487446242,-1549.39999999,0.000109,2]
[334703605,1723487446367,-1326.99611609,0.000109,2]
[334703606,1723487446379,-1026.0,0.000109,2]
[334703607,1723487446391,-2302.7581173,0.000109,2]
[334703608,1723487446400,-4797.02441054,0.00011,2]
[334703609,1723487446417,-17532.9915,0.00011,2]
[334703634,1723487698825,157.64,8.749e-05,2]
[334703637,1723487784224,155.0,8.749e-05,10]
[334703639,1723487799213,155.0,8.749e-05,10]
[334703644,1723487919386,1274.99398232,8.749e-05,2]
[334703645,1723487925223,155.0,8.749e-05,10]
[334703651,1723488065500,227.76686171,8.749e-05,2]
[334703654,1723488180474,227.76686171,8.749e-05,2]
[334703655,1723488191693,201.78,8.219e-05,2]
[334703688,1723488634081,-800.0,9.793e-05,2]
[334703689,1723488634091,-157.58581367,9.794e-05,2]
[334703690,1723488634100,-154.93,9.794e-05,2]
[334703691,1723488634110,-303.4,9.942e-05,2]
[334703692,1723488634119,-1263.13815259,9.962e-05,2]
[334703693,1723488634128,-200.0,9.982e-05,2]
[334703694,1723488634138,-550.0,0.0001,2]
[334703695,1723488634149,-4702.36121204,0.00010147,2]
[334703696,1723488634165,-1410.46708796,0.00010147,2]
[334703697,1723488634174,-33.21836354,0.00010247,2]
[334703698,1723488634186,-124.36745012,0.00010247,2]
[334703699,1723488634196,-150.0,0.00010329,2]
[334703700,1723488634206,-150.0,0.00010345,2]
[334703701,1723488634216,-310.0,0.00010346,2]
[334703702,1723488634225,-1725.0,0.00010346,2]
[334703703,1723488634236,-719.99287251,0.00010346,2]
[334703704,1723488634245,-155.0,0.00010346,2]
[334703705,1723488634255,-225.40618881,0.00010346,2]
[334703706,1723488634265,-8375.46588495,0.00010346,2]
[334703707,1723488634277,-343.36626588,0.00010346,2]
[334703708,1723488634289,-1815.32092472,0.00010346,2]
[334703709,1723488634299,-364.18791554,0.00010346,2]
[334703710,1723488634309,-201.78,0.0001047,2]
[334703711,1723488634319,-499.99,0.0001047,2]
[334703712,1723488634330,-156.32792969,0.00010605,2]
[334703713,1723488634340,-151.96,0.00010616,2]
[334703715,1723488634349,-792.86,0.00010616,2]
[334703717,1723488634359,-151.96,0.0001062,2]
[334703718,1723488634369,-150.99,0.0001062,2]
[334703719,1723488634382,-5034.04,0.0001062,2]
[334703720,1723488634392,-151.96,0.00010624,2]
[334703721,1723488634402,-151.96,0.00010628,2]
[334703722,1723488634412,-151.96,0.00010632,2]
[334703723,1723488634423,-151.96,0.00010636,2]
[334703724,1723488634433,-151.96,0.0001064,2]
[334703725,1723488634442,-151.96,0.00010644,2]
[334703726,1723488634452,-151.96,0.00010649,2]
[334703727,1723488634463,-151.96,0.00010653,2]
[334703728,1723488634473,-151.96,0.00010657,2]
[334703729,1723488634483,-151.96,0.00010661,2]
[334703730,1723488634492,-151.96,0.00010665,2]
[334703731,1723488634501,-151.96,0.00010669,2]
[334703732,1723488634511,-150.8736,0.00010791,2]
[334703733,1723488634521,-212.90899324,0.000108,2]
[334703734,1723488634541,-352.26280676,0.000108,2]
[334703735,1723488634551,-531.28714324,0.000108,2]
[334703736,1723488634563,-846.47,0.000108,2]
[334703737,1723488634578,-265.09865676,0.000108,2]
[334703738,1723488634587,-85.13134314,0.0001099,2]
[334703739,1723488634599,-1137.39382393,0.0001099,2]
[334703740,1723488634612,-531.17276182,0.0001099,2]
[334703741,1723488634624,-107.00299081,0.0001099,2]
[334703742,1723488634633,-348.29916706,0.00011,2]
[334703743,1723488634644,-5494.09822519,0.00011,2]
[334703744,1723488634656,-462.53216332,0.00011,2]
[334703745,1723488634666,-2433.45023322,0.00011,2]
[334703746,1723488634678,-19931.92492898,0.00011,2]
[334703747,1723488634687,-250.0,0.00011,2]
[334703748,1723488634698,-1050.68636838,0.00011,2]
[334703749,1723488634707,-170.50678652,0.00011,2]
[334703750,1723488634717,-162.72933545,0.00011,2]
[334703751,1723488634727,-413.15115888,0.00011,2]
[334703752,1723488634736,-3000.0,0.00011,2]
[334703753,1723488634745,-1456.92,0.00011,2]
[334703754,1723488634754,-4005.68,0.00011005,2]
[334703755,1723488634764,-10814.64200784,0.00011005,2]
[334703756,1723488634774,-800.0,0.00011017,2]
[334703757,1723488634783,-15483.10746637,0.00011105,2]
[334703758,1723488634793,-528.11767202,0.00011105,2]
[334703759,1723488634802,-298.64662098,0.00011105,2]
[334703760,1723488634812,-3121.02924387,0.00011105,2]
[334703761,1723488634821,-166.76578094,0.00011105,2]
[334703762,1723488634830,-962.44601255,0.00011105,2]
[334703763,1723488634839,-367.87511774,0.00011105,2]
[334703764,1723488634849,-5403.79429818,0.00011105,2]
[334703765,1723488634859,-522.26105292,0.00011105,2]
[334703766,1723488634869,-547.93978231,0.00011105,2]
[334703767,1723488634878,-7000.0,0.00011105,2]
[334703768,1723488634891,-155.10127529,0.00011105,2]
[334703769,1723488634901,-723.413963,0.00011105,2]
[334703770,1723488634911,-649.52111484,0.00011105,2]
[334703771,1723488634920,-2841.12816254,0.00011105,2]
[334703772,1723488634930,-9903.70253644,0.00011105,2]
[334703773,1723488634939,-165.50846167,0.00011105,2]
[334703774,1723488634949,-230.7905527,0.00011105,2]
[334703775,1723488634958,-297.48958849,0.00011105,2]
[334703776,1723488634968,-155.318472,0.00011105,2]
[334703777,1723488634977,-206.76991049,0.00011105,2]
[334703778,1723488634987,-454.57521967,0.00011105,2]
[334703779,1723488634999,-155.18840047,0.00011105,2]
[334703780,1723488635010,-687.02501385,0.00011105,2]
[334703781,1723488635020,-155.13684037,0.00011105,2]
[334703782,1723488635030,-155.0,0.00011105,2]
[334703783,1723488635041,-215.23279799,0.00011105,2]
[334703784,1723488635051,-175.67867199,0.00011105,2]
[334703785,1723488635062,-243.25458866,0.00011105,2]
[334703786,1723488635072,-485.18668102,0.00011105,2]
[334703787,1723488635081,-203.41395605,0.00011105,2]
[334703788,1723488635090,-155.70062256,0.00011105,2]
[334703789,1723488635100,-476.94280787,0.00011105,2]
[334703790,1723488635109,-380.32741541,0.00011105,2]
[334703791,1723488635118,-155.0,0.00011105,2]
[334703792,1723488635129,-3875.44196721,0.00011105,2]
[334703793,1723488635139,-3032.35761195,0.00011105,2]
[334703794,1723488635148,-359.41537774,0.00011105,2]
[334703795,1723488635157,-520.13340827,0.00011105,2]
[334703796,1723488635167,-155.0,0.00011105,2]
[334703797,1723488635176,-155.0,0.00011105,2]
[334703798,1723488635187,-155.0,0.00011105,2]
[334703799,1723488635196,-2211.18842616,0.00011105,2]
[334703800,1723488635206,-205.08524829,0.00011105,2]
[334703801,1723488635216,-595.07789582,0.00011105,2]
[334703802,1723488635226,-432.47832469,0.00011105,2]
[334703803,1723488635236,-3082.18064459,0.00011105,2]
[334703804,1723488635246,-1275.64502519,0.00011105,2]
[334703805,1723488635256,-155.0,0.00011105,2]
[334703806,1723488635266,-155.0,0.00011105,2]
[334703807,1723488635276,-155.1718428,0.00011105,2]
[334703808,1723488635285,-3937.46359227,0.00011105,2]
[334703809,1723488635295,-1739.57017204,0.00011105,2]
[334703810,1723488635304,-892.72350459,0.00011105,2]
[334703811,1723488635314,-212.24302171,0.00011105,2]
[334703812,1723488635324,-2502.58566001,0.00011105,2]
[334703813,1723488635334,-347.69615481,0.00011105,2]
[334703814,1723488635343,-155.0,0.00011105,2]
[334703815,1723488635354,-1298.23330788,0.00011105,2]
[334703816,1723488635365,-202.906155,0.00011105,2]
[334703817,1723488635378,-218.91005949,0.00011105,2]
[334703818,1723488635388,-155.0,0.00011105,2]
[334703819,1723488635397,-155.0,0.00011105,2]
[334703820,1723488635406,-155.0,0.00011105,2]
[334703821,1723488635417,-2341.8386325,0.00011105,2]
[334703822,1723488635427,-1139.1217656,0.00011105,2]
[334703823,1723488635437,-167.58719206,0.00011105,2]
[334703824,1723488635447,-440.08291615,0.00011105,2]
[334703825,1723488635696,-296.14303044,0.00011105,2]
[334703826,1723488635707,-401.38425567,0.00011105,2]
[334703827,1723488635717,-241.97615057,0.00011105,2]
[334703828,1723488635726,-600.74422133,0.00011105,2]
[334703829,1723488635736,-155.0,0.00011105,2]
[334703830,1723488635746,-155.0,0.00011105,2]
[334703831,1723488635755,-287.06164752,0.00011105,2]
[334703832,1723488635765,-200.0,0.00011105,2]
[334703833,1723488635775,-155.0,0.00011105,2]
[334703834,1723488635784,-155.48656787,0.00011105,2]
[334703835,1723488635794,-921.56338905,0.00011105,2]
[334703836,1723488635804,-493.59808335,0.00011105,2]
[334703837,1723488635814,-155.06895104,0.00011105,2]
[334703838,1723488635823,-400.0,0.00011105,2]
[334703839,1723488635833,-158.39644401,0.00011105,2]
[334703840,1723488635842,-209.45746072,0.00011105,2]
[334703841,1723488635852,-155.0,0.00011105,2]
[334703842,1723488635865,-167.55459275,0.00011105,2]
[334703843,1723488635875,-419.10841212,0.00011105,2]
[334703844,1723488635885,-236.34424982,0.00011105,2]
[334703845,1723488635894,-155.0,0.00011105,2]
[334703846,1723488635904,-328.2488375,0.00011105,2]
[334703847,1723488635914,-155.0,0.00011105,2]
[334703848,1723488635925,-155.0,0.00011105,2]
[334703849,1723488635936,-357.45302385,0.00011105,2]
[334703850,1723488635946,-155.0,0.00011105,2]
[334703851,1723488635957,-330.1975188,0.00011105,2]
[334703852,1723488635967,-265.43626793,0.00011105,2]
[334703853,1723488635978,-155.0,0.00011105,2]
[334703854,1723488635989,-365.80180037,0.00011105,2]
[334703855,1723488636000,-270.58164358,0.00011105,2]
[334703856,1723488636011,-155.0,0.00011105,2]
[334703857,1723488636023,-211.73961936,0.00011105,2]
[334703858,1723488636034,-255.19609183,0.00011105,2]
[334703859,1723488636045,-211.06190242,0.00011105,2]
[334703860,1723488636055,-313.72504289,0.00011105,2]
[334703861,1723488636066,-155.0,0.00011105,2]
[334703862,1723488636078,-155.0,0.00011105,2]
[334703863,1723488636088,-155.0,0.00011105,2]
[334703864,1723488636099,-205.93925426,0.00011105,2]
[334703865,1723488636114,-159.60847032,0.00011105,2]
[334703866,1723488636133,-164.40260801,0.00011105,2]
[334703867,1723488636144,-155.0,0.00011105,2]
[334703868,1723488636159,-155.0,0.00011105,2]
[334703869,1723488636171,-164.37927092,0.00011105,2]
[334703870,1723488636182,-155.0,0.00011105,2]
[334703871,1723488636193,-155.0,0.00011105,2]
[334703872,1723488636204,-155.0,0.00011105,2]
[334703873,1723488636215,-155.0,0.00011105,2]
[334703874,1723488636227,-155.44272361,0.00011105,2]
[334703875,1723488636237,-155.0,0.00011105,2]
[334703876,1723488636248,-309.29668231,0.00011105,2]
[334703877,1723488636259,-264.49036255,0.00011105,2]
[334703878,1723488636269,-155.0,0.00011105,2]